[Event "FTX Road to Miami Prelims 2022"]
[Site "Online"]
[Date "2022.07.04"]
[Round "13.4"]
[White "Tari, Aryan"]
[Black "Duda, Jan-Krzysztof"]
[Result "1-0"]
[ECO "B52"]
[WhiteElo "2672"]
[BlackElo "2750"]
[Annotator "ChessBase"]
[PlyCount "175"]
[EventDate "2022.07.10"]
[EventType "tourn"]
[EventCountry "NET"]
[SourceTitle "playchess.com"]
[Source "ChessBase"]
[SourceQuality "1"]
[TimeControl "40/5400+30:1800+30"]

1. e4 {[%emt 1:15:40]} c5 {[%emt 1:15:40]} 2. Nf3 {[%emt 0:00:31]} d6 {[%emt 0:00:22]} 3. Bb5+ {[%emt 0:00:23]} Bd7 {[%emt 0:00:23]} 4. Bxd7+ {[%emt 0:00:27]} Qxd7 {[%emt 0:00:20]} 5. c4 {[%emt 0:00:21]} Nf6 {[%emt 0:00:35]} 6. Nc3 {[%emt 0:00:23]} g5 {[%emt 0:00:24]} 7. d3 {[%emt 0:03:23]} g4 {[%emt 0:00:24]} 8. Ng1 {[%emt 0:00:42]} h5 {[%emt 0:00:31]} 9. Nge2 {[%emt 0:01:05]} Nc6 {[%emt 0:00:24]} 10. Bg5 {[%emt 0:00:35]} Bg7 {[%emt 0:00:41]} 11. Qd2 {[%emt 0:00:28]} Nh7 {[%emt 0:01:57]} 12. Be3 {[%emt 0:00:35]} Nf8 {[%emt 0:00:21]} 13. d4 {[%emt 0:01:05]} Ng6 {[%emt 0:00:24]} 14. O-O-O {[%emt 0:02:47]} b6 {[%emt 0:01:30]} 15. h3 {[%emt 0:01:28]} Rc8 {[%emt 0:01:46]} 16. Kb1 {[%emt 0:01:17]} Nh4 {[%emt 0:01:47]} 17. hxg4 {[%emt 0:01:03]} hxg4 {[%emt 0:00:20]} 18. dxc5 {[%emt 0:02:11]} bxc5 {[%emt 0:01:05]} 19. Bxc5 {[%emt 0:00:41]} Qe6 {[%emt 0:01:20]} 20. Ba3 {[%emt 0:01:29]} Nxg2 {[%emt 0:05:40]} 21. Qg5 {[%emt 0:00:23]} Rxh1 {[%emt 0:01:36]} 22. Rxh1 {[%emt 0:00:20]} Bf6 {[%emt 0:00:21]} 23. Qd5 {[%emt 0:01:24]} Ne5 {[%emt 0:00:37]} 24. b3 {[%emt 0:01:19]} Nf3 {[%emt 0:00:46]} 25. Rd1 {[%emt 0:00:56]} Qxd5 {[%emt 0:00:29]} 26. Nxd5 {[%emt 0:00:21]} Bh4 {[%emt 0:00:21]} 27. Ng3 {[%emt 0:00:48]} Kd7 {[%emt 0:02:04]} 28. c5 {[%emt 0:00:25]} Bg5 {[%emt 0:00:37]} 29. cxd6 {[%emt 0:00:45]} e6 {[%emt 0:01:41]} 30. Nc7 {[%emt 0:00:21]} Bd8 {[%emt 0:00:43]} 31. Na6 {[%emt 0:01:21]} Bb6 {[%emt 0:00:37]} 32. Nh5 {[%emt 0:00:23]} Bd4 {[%emt 0:00:20]} 33. Bb2 {[%emt 0:00:24]} e5 {[%emt 0:00:22]} 34. Ba3 {[%emt 0:00:41]} Nf4 {[%emt 0:00:22]} 35. Nf6+ {[%emt 0:00:31]} Ke6 {[%emt 0:00:48]} 36. d7 {[%emt 0:00:55]} Rd8 {[%emt 0:00:33]} 37. Nxg4 {[%emt 0:00:20]} Rxd7 {[%emt 0:00:27]} 38. Bc5 {[%emt 0:01:01]} f5 {[%emt 0:00:36]} 39. Bxd4 {[%emt 0:00:22]} Rxd4 {[%emt 0:00:26]} 40. Nc7+ {[%emt 0:00:33]} Kd7 {[%emt 0:00:31]} 41. Nxe5+ {[%emt 0:30:21]} Kxc7 {[%emt 0:30:21]} 42. Rc1+ {[%emt 0:00:21]} Kb6 {[%emt 0:00:22]} 43. Nxf3 {[%emt 0:00:24]} Rxe4 {[%emt 0:00:21]} 44. Nd2 {[%emt 0:00:40]} Re2 {[%emt 0:00:42]} 45. Nc4+ {[%emt 0:00:21]} Kc5 {[%emt 0:00:48]} 46. Ne3+ {[%emt 0:00:22]} Kb5 {[%emt 0:00:29]} 47. Rc2 {[%emt 0:00:54]} Re1+ {[%emt 0:00:21]} 48. Kb2 {[%emt 0:00:25]} Nd3+ {[%emt 0:00:21]} 49. Kc3 {[%emt 0:00:31]} Nxf2 {[%emt 0:00:32]} 50. Nxf5 {[%emt 0:00:45]} Ne4+ {[%emt 0:00:22]} 51. Kd4 {[%emt 0:00:23]} Kb6 {[%emt 0:00:34]} 52. Ne3 {[%emt 0:00:25]} Nd6 {[%emt 0:00:33]} 53. Nd5+ {[%emt 0:00:21]} Kb7 {[%emt 0:00:20]} 54. Rc7+ {[%emt 0:00:25]} Kb8 {[%emt 0:00:21]} 55. Rd7 {[%emt 0:00:56]} Rd1+ {[%emt 0:00:28]} 56. Kc5 {[%emt 0:00:21]} Nb7+ {[%emt 0:01:05]} 57. Kb5 {[%emt 0:00:28]} Rd3 {[%emt 0:00:34]} 58. b4 {[%emt 0:00:39]} Ra3 {[%emt 0:00:26]} 59. Rh7 {[%emt 0:00:35]} Nd6+ {[%emt 0:00:28]} 60. Kc5 {[%emt 0:00:21]} Nc8 {[%emt 0:00:38]} 61. b5 {[%emt 0:00:31]} Rxa2 {[%emt 0:00:28]} 62. Nb4 {[%emt 0:00:20]} Rg2 {[%emt 0:00:26]} 63. Nc6+ {[%emt 0:00:33]} Ka8 {[%emt 0:00:22]} 64. Rc7 {[%emt 0:00:21]} Rb2 {[%emt 0:00:39]} 65. Rxc8+ {[%emt 0:00:25]} Kb7 {[%emt 0:00:21]} 66. Rb8+ {[%emt 0:00:26]} Kc7 {[%emt 0:00:21]} 67. Ra8 {[%emt 0:00:50]} Rc2+ {[%emt 0:00:25]} 68. Kb4 {[%emt 0:00:24]} Rb2+ {[%emt 0:00:52]} 69. Kc4 {[%emt 0:00:25]} Rc2+ {[%emt 0:00:31]} 70. Kb3 {[%emt 0:00:24]} Rc1 {[%emt 0:00:21]} 71. Nd4 {[%emt 0:00:35]} Kb7 {[%emt 0:00:46]} 72. Rg8 {[%emt 0:00:30]} Ra1 {[%emt 0:00:26]} 73. Ne6 {[%emt 0:00:57]} Rb1+ {[%emt 0:00:34]} 74. Kc4 {[%emt 0:00:22]} Rc1+ {[%emt 0:00:24]} 75. Kd5 {[%emt 0:00:21]} Rd1+ {[%emt 0:00:35]} 76. Nd4 {[%emt 0:00:23]} Rc1 {[%emt 0:00:30]} 77. Rg7+ {[%emt 0:00:24]} Kb6 {[%emt 0:00:22]} 78. Rg6+ {[%emt 0:00:22]} Kb7 {[%emt 0:00:21]} 79. Nb3 {[%emt 0:00:24]} Rd1+ {[%emt 0:00:28]} 80. Kc4 {[%emt 0:00:22]} Kc7 {[%emt 0:00:43]} 81. Kc5 {[%emt 0:00:34]} Rd7 {[%emt 0:00:36]} 82. Nd4 {[%emt 0:00:54]} Rh7 {[%emt 0:00:25]} 83. Nc6 {[%emt 0:00:47]} Rh5+ {[%emt 0:00:31]} 84. Kb4 {[%emt 0:00:21]} a6 {[%emt 0:00:33]} 85. bxa6 {[%emt 0:00:27]} Rh1 {[%emt 0:00:29]} 86. a7 {[%emt 0:00:30]} Rb1+ {[%emt 0:00:32]} 87. Kc3 {[%emt 0:00:30]} Ra1 {[%emt 0:00:39]} 88. Rg8 {[%emt 0:00:26]} 1-0

[Event "FTX Road to Miami Prelims 2022"]
[Site "Online"]
[Date "2022.07.04"]
[Round "13.5"]
[White "Sevian, Samuel"]
[Black "Dominguez Perez, Leinier"]
[Result "1/2-1/2"]
[ECO "C54"]
[WhiteElo "2684"]
[BlackElo "2754"]
[Annotator "ChessBase"]
[PlyCount "79"]
[EventDate "2022.07.10"]
[EventType "tourn"]
[EventCountry "NET"]
[SourceTitle "playchess.com"]
[Source "ChessBase"]
[SourceQuality "1"]
[TimeControl "40/5400+30:1800+30"]

1. e4 {[%emt 1:15:40]} e5 {[%emt 1:15:40]} 2. Nf3 {[%emt 0:00:23]} Nc6 {[%emt 0:00:28]} 3. Bc4 {[%emt 0:00:45]} Bc5 {[%emt 0:00:24]} 4. O-O {[%emt 0:00:24]} Nf6 {[%emt 0:00:22]} 5. d3 {[%emt 0:00:30]} d6 {[%emt 0:00:40]} 6. c3 {[%emt 0:00:24]} a5 {[%emt 0:00:42]} 7. Re1 {[%emt 0:00:50]} O-O {[%emt 0:00:27]} 8. h3 {[%emt 0:00:42]} h6 {[%emt 0:00:48]} 9. Bb5 {[%emt 0:00:32]} Bb6 {[%emt 0:00:45]} 10. Nbd2 {[%emt 0:00:40]} Be6 {[%emt 0:00:24]} 11. Nf1 {[%emt 0:01:05]} Ne7 {[%emt 0:00:28]} 12. Ng3 {[%emt 0:00:39]} Nd7 {[%emt 0:00:25]} 13. d4 {[%emt 0:00:54]} f5 {[%emt 0:00:23]} 14. exf5 {[%emt 0:01:11]} Nxf5 {[%emt 0:00:25]} 15. Nxf5 {[%emt 0:00:34]} Bxf5 {[%emt 0:01:14]} 16. Bc4+ {[%emt 0:04:06]} Kh8 {[%emt 0:00:25]} 17. dxe5 {[%emt 0:00:34]} Nxe5 {[%emt 0:05:43]} 18. Nxe5 {[%emt 0:00:22]} dxe5 {[%emt 0:00:21]} 19. Qxd8 {[%emt 0:00:45]} Raxd8 {[%emt 0:00:25]} 20. Be3 {[%emt 0:00:21]} Bxe3 {[%emt 0:01:15]} 21. Rxe3 {[%emt 0:00:22]} Rd2 {[%emt 0:00:43]} 22. Re2 {[%emt 0:03:30]} Rxe2 {[%emt 0:00:23]} 23. Bxe2 {[%emt 0:00:20]} Rd8 {[%emt 0:00:21]} 24. Rd1 {[%emt 0:02:39]} Rxd1+ {[%emt 0:00:22]} 25. Bxd1 {[%emt 0:00:20]} g5 {[%emt 0:00:21]} 26. Kf1 {[%emt 0:00:21]} Kg7 {[%emt 0:00:24]} 27. Ke2 {[%emt 0:00:21]} Be4 {[%emt 0:00:52]} 28. g3 {[%emt 0:01:00]} Bf5 {[%emt 0:00:58]} 29. h4 {[%emt 0:00:22]} gxh4 {[%emt 0:00:23]} 30. gxh4 {[%emt 0:00:20]} Bg4+ {[%emt 0:00:35]} 31. f3 {[%emt 0:00:21]} Be6 {[%emt 0:00:28]} 32. a3 {[%emt 0:00:29]} Kg6 {[%emt 0:00:54]} 33. Kf2 {[%emt 0:02:55]} Bf5 {[%emt 0:01:37]} 34. Be2 {[%emt 0:00:34]} b6 {[%emt 0:00:29]} 35. Bb5 {[%emt 0:00:28]} Kf6 {[%emt 0:00:40]} 36. Ke3 {[%emt 0:00:23]} Bc2 {[%emt 0:00:33]} 37. Bc6 {[%emt 0:00:24]} Bf5 {[%emt 0:00:28]} 38. Bb5 {[%emt 0:00:22]} Bc2 {[%emt 0:00:23]} 39. Bc6 {[%emt 0:00:21]} Bf5 {[%emt 0:00:21]} 40. Bb5 {[%emt 0:00:20]} 1/2-1/2

[Event "FTX Road to Miami Prelims 2022"]
[Site "Online"]
[Date "2022.07.04"]
[Round "13.6"]
[White "Aronian, Levon"]
[Black "Wei, Yi"]
[Result "1/2-1/2"]
[ECO "B50"]
[WhiteElo "2775"]
[BlackElo "2727"]
[Annotator "ChessBase"]
[PlyCount "121"]
[EventDate "2022.07.10"]
[EventType "tourn"]
[EventCountry "NET"]
[SourceTitle "playchess.com"]
[Source "ChessBase"]
[SourceQuality "1"]
[TimeControl "40/5400+30:1800+30"]

1. e4 {[%emt 1:15:40]} c5 {[%emt 1:15:40]} 2. Nf3 {[%emt 0:00:22]} d6 {[%emt 0:00:21]} 3. Bc4 {[%emt 0:00:21]} Nf6 {[%emt 0:00:21]} 4. d3 {[%emt 0:00:21]} e6 {[%emt 0:00:22]} 5. O-O {[%emt 0:00:21]} Be7 {[%emt 0:00:21]} 6. Nbd2 {[%emt 0:00:32]} Nc6 {[%emt 0:00:24]} 7. c3 {[%emt 0:00:30]} O-O {[%emt 0:00:22]} 8. Re1 {[%emt 0:00:21]} a6 {[%emt 0:01:51]} 9. Bb3 {[%emt 0:00:30]} b5 {[%emt 0:00:54]} 10. Nf1 {[%emt 0:00:21]} a5 {[%emt 0:01:17]} 11. Ng3 {[%emt 0:00:43]} a4 {[%emt 0:02:01]} 12. Bc2 {[%emt 0:00:22]} e5 {[%emt 0:00:21]} 13. h3 {[%emt 0:00:35]} Qc7 {[%emt 0:00:44]} 14. d4 {[%emt 0:00:39]} cxd4 {[%emt 0:01:03]} 15. cxd4 {[%emt 0:00:20]} exd4 {[%emt 0:01:33]} 16. Bf4 {[%emt 0:00:57]} Be6 {[%emt 0:01:06]} 17. Nf5 {[%emt 0:01:02]} Bxf5 {[%emt 0:01:15]} 18. exf5 {[%emt 0:00:20]} a3 {[%emt 0:01:28]} 19. bxa3 {[%emt 0:00:29]} Nd5 {[%emt 0:00:24]} 20. Bg5 {[%emt 0:01:40]} Rxa3 {[%emt 0:03:10]} 21. Bb3 {[%emt 0:01:35]} Bxg5 {[%emt 0:00:52]} 22. Nxg5 {[%emt 0:00:21]} Nf6 {[%emt 0:00:27]} 23. Rc1 {[%emt 0:00:22]} d5 {[%emt 0:01:21]} 24. Nf3 {[%emt 0:05:41]} Qb6 {[%emt 0:00:40]} 25. g4 {[%emt 0:00:32]} Ne4 {[%emt 0:00:34]} 26. Nd2 {[%emt 0:00:29]} Nc3 {[%emt 0:01:58]} 27. Qf3 {[%emt 0:00:23]} Nb4 {[%emt 0:00:52]} 28. Nb1 {[%emt 0:01:36]} Nxb1 {[%emt 0:00:21]} 29. Rxb1 {[%emt 0:00:21]} d3 {[%emt 0:00:57]} 30. Qf4 {[%emt 0:01:53]} Nxa2 {[%emt 0:00:27]} 31. Qd2 {[%emt 0:00:36]} Qa5 {[%emt 0:01:32]} 32. Qxa5 {[%emt 0:00:55]} Rxa5 {[%emt 0:00:21]} 33. Ra1 {[%emt 0:00:21]} Rfa8 {[%emt 0:00:41]} 34. Bxd5 {[%emt 0:01:07]} d2 {[%emt 0:00:21]} 35. Red1 {[%emt 0:00:48]} Nc3 {[%emt 0:00:25]} 36. Rxa5 {[%emt 0:00:23]} Rxa5 {[%emt 0:00:25]} 37. Rxd2 {[%emt 0:00:20]} Ra1+ {[%emt 0:00:36]} 38. Kg2 {[%emt 0:00:28]} Rd1 {[%emt 0:00:22]} 39. Rxd1 {[%emt 0:01:13]} Nxd1 {[%emt 0:00:20]} 40. Kf3 {[%emt 0:00:22]} Nc3 {[%emt 0:00:24]} 41. Bb3 {[%emt 0:30:25]} Kf8 {[%emt 0:30:51]} 42. f6 {[%emt 0:01:29]} gxf6 {[%emt 0:00:27]} 43. Ke3 {[%emt 0:00:21]} Ke7 {[%emt 0:00:35]} 44. Kd4 {[%emt 0:00:38]} Ne2+ {[%emt 0:00:22]} 45. Ke3 {[%emt 0:00:24]} Nc3 {[%emt 0:00:25]} 46. Kd4 {[%emt 0:00:21]} b4 {[%emt 0:01:06]} 47. f4 {[%emt 0:00:26]} Ne2+ {[%emt 0:00:25]} 48. Ke3 {[%emt 0:00:22]} Nc3 {[%emt 0:00:21]} 49. Kd4 {[%emt 0:00:22]} h6 {[%emt 0:00:42]} 50. h4 {[%emt 0:00:21]} Ne2+ {[%emt 0:00:34]} 51. Ke3 {[%emt 0:00:21]} Nc3 {[%emt 0:00:22]} 52. Kd4 {[%emt 0:00:21]} Nb1 {[%emt 0:00:49]} 53. Kd3 {[%emt 0:00:42]} Na3 {[%emt 0:00:31]} 54. g5 {[%emt 0:00:45]} fxg5 {[%emt 0:00:27]} 55. fxg5 {[%emt 0:00:21]} hxg5 {[%emt 0:00:23]} 56. hxg5 {[%emt 0:00:21]} Kf8 {[%emt 0:00:41]} 57. Kd4 {[%emt 0:00:24]} Kg7 {[%emt 0:00:21]} 58. Kc5 {[%emt 0:00:22]} Kg6 {[%emt 0:00:21]} 59. Kxb4 {[%emt 0:00:21]} Kxg5 {[%emt 0:00:22]} 60. Bxf7 {[%emt 0:00:23]} Kf6 {[%emt 0:00:25]} 61. Kxa3 {[%emt 0:00:21]} 1/2-1/2

[Event "FTX Road to Miami Prelims 2022"]
[Site "Online"]
[Date "2022.07.04"]
[Round "13.8"]
[White "Rapport, Richard"]
[Black "Wojtaszek, Radoslaw"]
[Result "1/2-1/2"]
[ECO "B23"]
[WhiteElo "2764"]
[BlackElo "2708"]
[Annotator "ChessBase"]
[PlyCount "95"]
[EventDate "2022.07.10"]
[EventType "tourn"]
[EventCountry "NET"]
[SourceTitle "playchess.com"]
[Source "ChessBase"]
[SourceQuality "1"]
[TimeControl "40/5400+30:1800+30"]

1. e4 {[%emt 1:15:40]} c5 {[%emt 1:15:40]} 2. Nc3 {[%emt 0:00:23]} d6 {[%emt 0:00:24]} 3. Bc4 {[%emt 0:00:36]} Nc6 {[%emt 0:00:32]} 4. d3 {[%emt 0:00:33]} g6 {[%emt 0:00:55]} 5. a3 {[%emt 0:00:22]} Bg7 {[%emt 0:00:23]} 6. Nge2 {[%emt 0:00:24]} e6 {[%emt 0:00:44]} 7. Ba2 {[%emt 0:00:25]} Nge7 {[%emt 0:00:29]} 8. Bg5 {[%emt 0:00:23]} h6 {[%emt 0:00:34]} 9. Be3 {[%emt 0:00:23]} Nd4 {[%emt 0:00:26]} 10. O-O {[%emt 0:00:35]} O-O {[%emt 0:00:36]} 11. Qd2 {[%emt 0:00:30]} Kh7 {[%emt 0:00:24]} 12. Rae1 {[%emt 0:00:56]} Nec6 {[%emt 0:01:00]} 13. Nc1 {[%emt 0:00:47]} b6 {[%emt 0:02:08]} 14. f4 {[%emt 0:00:29]} f5 {[%emt 0:00:45]} 15. Kh1 {[%emt 0:00:46]} Qf6 {[%emt 0:00:36]} 16. Nd1 {[%emt 0:00:43]} Bd7 {[%emt 0:01:14]} 17. c3 {[%emt 0:01:51]} Nb5 {[%emt 0:00:23]} 18. Ne2 {[%emt 0:00:35]} Rae8 {[%emt 0:00:31]} 19. Nf2 {[%emt 0:00:37]} e5 {[%emt 0:01:40]} 20. exf5 {[%emt 0:01:30]} gxf5 {[%emt 0:00:29]} 21. Ng3 {[%emt 0:00:25]} Qh4 {[%emt 0:00:53]} 22. Nh3 {[%emt 0:00:27]} Nc7 {[%emt 0:00:33]} 23. Bf2 {[%emt 0:00:58]} Qf6 {[%emt 0:01:08]} 24. Nh5 {[%emt 0:01:28]} Qg6 {[%emt 0:00:22]} 25. Nxg7 {[%emt 0:00:20]} Qxg7 {[%emt 0:00:22]} 26. Bg3 {[%emt 0:00:23]} Be6 {[%emt 0:01:01]} 27. Bb1 {[%emt 0:00:23]} Nd5 {[%emt 0:01:54]} 28. b4 {[%emt 0:00:58]} a6 {[%emt 0:01:38]} 29. c4 {[%emt 0:01:57]} Nc7 {[%emt 0:00:37]} 30. Qf2 {[%emt 0:00:43]} Bd7 {[%emt 0:00:42]} 31. bxc5 {[%emt 0:00:51]} bxc5 {[%emt 0:00:25]} 32. fxe5 {[%emt 0:00:26]} dxe5 {[%emt 0:00:30]} 33. Qxc5 {[%emt 0:00:27]} Ne6 {[%emt 0:00:24]} 34. Qd6 {[%emt 0:00:52]} Ned4 {[%emt 0:03:49]} 35. Bxe5 {[%emt 0:00:24]} Rxe5 {[%emt 0:00:22]} 36. Rxe5 {[%emt 0:00:23]} Rg8 {[%emt 0:00:21]} 37. Nf4 {[%emt 0:01:20]} Qxe5 {[%emt 0:00:31]} 38. Qxd7+ {[%emt 0:00:23]} Rg7 {[%emt 0:00:21]} 39. Qd5 {[%emt 0:00:26]} Qe3 {[%emt 0:00:22]} 40. g3 {[%emt 0:00:39]} Re7 {[%emt 0:02:35]} 41. c5 {[%emt 0:30:52]} Ne5 {[%emt 0:30:26]} 42. Ba2 {[%emt 0:00:44]} Rg7 {[%emt 0:00:26]} 43. Qg2 {[%emt 0:03:28]} Ng4 {[%emt 0:01:22]} 44. c6 {[%emt 0:00:59]} Qe5 {[%emt 0:00:49]} 45. Qd5 {[%emt 0:01:25]} Qe3 {[%emt 0:00:22]} 46. Qg2 {[%emt 0:00:52]} Qe5 {[%emt 0:00:22]} 47. Rc1 {[%emt 0:00:52]} Qe3 {[%emt 0:00:46]} 48. Rf1 {[%emt 0:00:39]} 1/2-1/2

[Event "FTX Road to Miami Prelims 2022"]
[Site "Online"]
[Date "2022.07.04"]
[Round "14.1"]
[White "Niemann, Hans Moke"]
[Black "Wojtaszek, Radoslaw"]
[Result "0-1"]
[ECO "B90"]
[WhiteElo "2688"]
[BlackElo "2708"]
[Annotator "ChessBase"]
[PlyCount "161"]
[EventDate "2022.07.10"]
[EventType "tourn"]
[EventCountry "NET"]
[SourceTitle "playchess.com"]
[Source "ChessBase"]
[SourceQuality "1"]
[TimeControl "40/5400+30:1800+30"]

1. e4 {[%emt 1:15:40]} c5 {[%emt 1:15:40]} 2. Nf3 {[%emt 0:00:22]} d6 {[%emt 0:00:21]} 3. d4 {[%emt 0:00:20]} cxd4 {[%emt 0:00:20]} 4. Nxd4 {[%emt 0:00:21]} Nf6 {[%emt 0:00:20]} 5. Nc3 {[%emt 0:00:20]} a6 {[%emt 0:00:21]} 6. Bd3 {[%emt 0:00:20]} e5 {[%emt 0:00:26]} 7. Nde2 {[%emt 0:00:22]} Be7 {[%emt 0:00:21]} 8. O-O {[%emt 0:00:22]} Be6 {[%emt 0:00:25]} 9. Ng3 {[%emt 0:00:26]} Nc6 {[%emt 0:00:34]} 10. a4 {[%emt 0:00:28]} Nb4 {[%emt 0:00:44]} 11. Re1 {[%emt 0:00:25]} O-O {[%emt 0:00:28]} 12. Bg5 {[%emt 0:00:58]} Rc8 {[%emt 0:00:33]} 13. Qd2 {[%emt 0:01:03]} h6 {[%emt 0:03:16]} 14. Be3 {[%emt 0:00:24]} Ng4 {[%emt 0:00:51]} 15. Be2 {[%emt 0:00:40]} Nxe3 {[%emt 0:00:28]} 16. fxe3 {[%emt 0:00:20]} d5 {[%emt 0:00:44]} 17. exd5 {[%emt 0:00:24]} Nxd5 {[%emt 0:00:54]} 18. Nxd5 {[%emt 0:00:22]} Qxd5 {[%emt 0:00:22]} 19. Qxd5 {[%emt 0:00:21]} Bxd5 {[%emt 0:00:20]} 20. Bd3 {[%emt 0:00:21]} g6 {[%emt 0:00:32]} 21. e4 {[%emt 0:00:23]} Be6 {[%emt 0:00:33]} 22. Kf1 {[%emt 0:00:27]} Rfd8 {[%emt 0:00:23]} 23. Ke2 {[%emt 0:00:24]} Bg4+ {[%emt 0:00:24]} 24. Kf1 {[%emt 0:00:36]} Bb4 {[%emt 0:00:33]} 25. Reb1 {[%emt 0:00:24]} Rd6 {[%emt 0:00:48]} 26. h3 {[%emt 0:00:28]} Rf6+ {[%emt 0:00:30]} 27. Kg1 {[%emt 0:00:21]} Bd7 {[%emt 0:00:35]} 28. Rf1 {[%emt 0:00:26]} Bc5+ {[%emt 0:00:53]} 29. Kh2 {[%emt 0:00:23]} Rxf1 {[%emt 0:00:40]} 30. Nxf1 {[%emt 0:00:20]} Be6 {[%emt 0:00:26]} 31. Nd2 {[%emt 0:00:34]} Bd4 {[%emt 0:00:57]} 32. Rb1 {[%emt 0:00:21]} Kf8 {[%emt 0:01:14]} 33. Nf3 {[%emt 0:00:30]} Bc5 {[%emt 0:00:23]} 34. b4 {[%emt 0:00:44]} Bd6 {[%emt 0:00:23]} 35. a5 {[%emt 0:00:20]} Ke7 {[%emt 0:00:27]} 36. b5 {[%emt 0:00:22]} axb5 {[%emt 0:00:21]} 37. Rxb5 {[%emt 0:00:22]} Rc7 {[%emt 0:00:22]} 38. Kg1 {[%emt 0:00:49]} Bd7 {[%emt 0:00:40]} 39. Rb1 {[%emt 0:00:22]} Bc8 {[%emt 0:00:22]} 40. Nd2 {[%emt 0:00:25]} Be6 {[%emt 0:01:24]} 41. Kf1 {[%emt 0:30:27]} Kd8 {[%emt 0:31:28]} 42. Rb5 {[%emt 0:00:27]} Kc8 {[%emt 0:01:51]} 43. Nf3 {[%emt 0:00:22]} f6 {[%emt 0:01:33]} 44. Nh4 {[%emt 0:00:24]} Bf7 {[%emt 0:00:28]} 45. Rb1 {[%emt 0:00:49]} Rc5 {[%emt 0:00:37]} 46. Ra1 {[%emt 0:00:48]} Kd8 {[%emt 0:00:31]} 47. Ke2 {[%emt 0:00:26]} Bc7 {[%emt 0:00:36]} 48. a6 {[%emt 0:00:26]} bxa6 {[%emt 0:00:20]} 49. Rxa6 {[%emt 0:00:21]} Ke7 {[%emt 0:00:21]} 50. Ra8 {[%emt 0:00:25]} h5 {[%emt 0:00:35]} 51. Kd2 {[%emt 0:01:01]} Be8 {[%emt 0:00:27]} 52. Ra7 {[%emt 0:00:35]} Kd6 {[%emt 0:00:35]} 53. Ra6+ {[%emt 0:00:36]} Ke7 {[%emt 0:00:29]} 54. Ra7 {[%emt 0:00:21]} Kd6 {[%emt 0:00:48]} 55. Ra6+ {[%emt 0:01:29]} Ke7 {[%emt 0:00:23]} 56. c4 {[%emt 0:00:34]} Ra5 {[%emt 0:00:32]} 57. Rxa5 {[%emt 0:00:24]} Bxa5+ {[%emt 0:00:19]} 58. Kc2 {[%emt 0:00:24]} Kd6 {[%emt 0:00:32]} 59. Be2 {[%emt 0:00:23]} Kc5 {[%emt 0:00:54]} 60. Kd3 {[%emt 0:00:21]} Bf7 {[%emt 0:00:31]} 61. Ke3 {[%emt 0:00:21]} Be1 {[%emt 0:00:31]} 62. Nf3 {[%emt 0:00:24]} Bg3 {[%emt 0:00:22]} 63. Bd3 {[%emt 0:00:55]} Kb4 {[%emt 0:00:55]} 64. Ke2 {[%emt 0:00:34]} Be6 {[%emt 0:01:15]} 65. Nd2 {[%emt 0:00:26]} Bf4 {[%emt 0:00:25]} 66. Nf3 {[%emt 0:00:21]} g5 {[%emt 0:00:30]} 67. Ne1 {[%emt 0:00:42]} Bxc4 {[%emt 0:00:32]} 68. Nc2+ {[%emt 0:00:46]} Kc3 {[%emt 0:00:22]} 69. Bxc4 {[%emt 0:00:20]} Kxc4 {[%emt 0:00:20]} 70. Na3+ {[%emt 0:00:41]} Kb4 {[%emt 0:00:27]} 71. Nc2+ {[%emt 0:00:29]} Kc3 {[%emt 0:01:04]} 72. Ne1 {[%emt 0:00:30]} Bg3 {[%emt 0:00:50]} 73. Nf3 {[%emt 0:00:27]} g4 {[%emt 0:00:21]} 74. hxg4 {[%emt 0:00:22]} hxg4 {[%emt 0:00:19]} 75. Nd2 {[%emt 0:00:22]} Bf4 {[%emt 0:00:45]} 76. Nf1 {[%emt 0:00:22]} g3 {[%emt 0:00:27]} 77. Ne3 {[%emt 0:00:55]} Bxe3 {[%emt 0:00:26]} 78. Kxe3 {[%emt 0:00:20]} Kc4 {[%emt 0:00:28]} 79. Ke2 {[%emt 0:00:25]} Kd4 {[%emt 0:00:22]} 80. Kf3 {[%emt 0:00:21]} Kd3 {[%emt 0:00:27]} 81. Kxg3 {[%emt 0:00:24]} 0-1

[Event "FTX Road to Miami Prelims 2022"]
[Site "Online"]
[Date "2022.07.04"]
[Round "14.2"]
[White "Shankland, Sam"]
[Black "Rapport, Richard"]
[Result "0-1"]
[ECO "B61"]
[WhiteElo "2720"]
[BlackElo "2764"]
[Annotator "ChessBase"]
[PlyCount "102"]
[EventDate "2022.07.10"]
[EventType "tourn"]
[EventCountry "NET"]
[SourceTitle "playchess.com"]
[Source "ChessBase"]
[SourceQuality "1"]
[TimeControl "40/5400+30:1800+30"]

1. e4 {[%emt 1:15:40]} c5 {[%emt 1:15:40]} 2. Nf3 {[%emt 0:00:22]} d6 {[%emt 0:00:26]} 3. d4 {[%emt 0:00:22]} cxd4 {[%emt 0:00:20]} 4. Nxd4 {[%emt 0:00:20]} Nf6 {[%emt 0:00:21]} 5. Nc3 {[%emt 0:00:22]} Nc6 {[%emt 0:00:22]} 6. Bg5 {[%emt 0:00:22]} Bd7 {[%emt 0:00:21]} 7. Qd2 {[%emt 0:00:34]} Rc8 {[%emt 0:00:22]} 8. f4 {[%emt 0:00:41]} Nxd4 {[%emt 0:00:40]} 9. Qxd4 {[%emt 0:00:22]} Qb6 {[%emt 0:00:22]} 10. Qxb6 {[%emt 0:00:35]} axb6 {[%emt 0:00:20]} 11. Bd3 {[%emt 0:01:52]} e6 {[%emt 0:00:25]} 12. Bh4 {[%emt 0:01:03]} Bc6 {[%emt 0:01:37]} 13. O-O-O {[%emt 0:00:53]} Be7 {[%emt 0:00:33]} 14. Bf2 {[%emt 0:00:29]} d5 {[%emt 0:01:10]} 15. e5 {[%emt 0:01:26]} Nd7 {[%emt 0:00:36]} 16. Ne2 {[%emt 0:00:24]} b5 {[%emt 0:00:39]} 17. Nd4 {[%emt 0:00:25]} b4 {[%emt 0:00:23]} 18. f5 {[%emt 0:00:57]} Nxe5 {[%emt 0:01:22]} 19. fxe6 {[%emt 0:00:23]} Nxd3+ {[%emt 0:00:44]} 20. Rxd3 {[%emt 0:00:20]} O-O {[%emt 0:00:22]} 21. Bg3 {[%emt 0:01:54]} fxe6 {[%emt 0:00:51]} 22. Nxe6 {[%emt 0:00:27]} Rf7 {[%emt 0:01:18]} 23. Nd4 {[%emt 0:01:18]} Bd7 {[%emt 0:00:59]} 24. Re1 {[%emt 0:00:46]} h5 {[%emt 0:00:54]} 25. h4 {[%emt 0:02:56]} Bg4 {[%emt 0:00:31]} 26. Rd2 {[%emt 0:00:49]} g5 {[%emt 0:00:34]} 27. Rxe7 {[%emt 0:01:29]} Rxe7 {[%emt 0:00:28]} 28. hxg5 {[%emt 0:00:20]} Rf8 {[%emt 0:00:40]} 29. b3 {[%emt 0:00:54]} Rd7 {[%emt 0:01:08]} 30. Kb2 {[%emt 0:00:38]} Kh7 {[%emt 0:00:24]} 31. Nb5 {[%emt 0:00:42]} Rf5 {[%emt 0:00:41]} 32. Rd4 {[%emt 0:00:51]} Be2 {[%emt 0:00:35]} 33. Nd6 {[%emt 0:01:14]} Rxg5 {[%emt 0:00:23]} 34. Ne4 {[%emt 0:00:21]} Rg6 {[%emt 0:00:22]} 35. Bh4 {[%emt 0:01:08]} Kg7 {[%emt 0:01:07]} 36. Nc5 {[%emt 0:00:51]} Rc7 {[%emt 0:00:58]} 37. Rxd5 {[%emt 0:00:26]} Rgc6 {[%emt 0:01:26]} 38. Rd2 {[%emt 0:00:34]} Rxc5 {[%emt 0:00:54]} 39. Rxe2 {[%emt 0:00:23]} Rb5 {[%emt 0:00:48]} 40. Re4 {[%emt 0:01:08]} Kg6 {[%emt 0:00:32]} 41. Be1 {[%emt 0:30:32]} Kf5 {[%emt 0:31:14]} 42. Rh4 {[%emt 0:00:43]} Kg5 {[%emt 0:00:21]} 43. Re4 {[%emt 0:00:42]} Rg7 {[%emt 0:01:16]} 44. Bxb4 {[%emt 0:01:33]} Kf5 {[%emt 0:00:32]} 45. Rh4 {[%emt 0:00:21]} Ke6 {[%emt 0:00:23]} 46. a4 {[%emt 0:00:32]} Rf5 {[%emt 0:00:37]} 47. Re4+ {[%emt 0:01:02]} Kd7 {[%emt 0:00:35]} 48. Re2 {[%emt 0:00:58]} Rfg5 {[%emt 0:00:22]} 49. Rd2+ {[%emt 0:00:49]} Kc8 {[%emt 0:00:29]} 50. Rd6 {[%emt 0:00:50]} R7g6 {[%emt 0:00:23]} 51. Rd4 {[%emt 0:00:44]} Rg4 {[%emt 0:00:28]} 0-1